[Event "*** Titled Tuesday Blitz"]
[Site "Chess.com"]
[Date "2020.04.28"]
[Round "1"]
[White "Michaelson_11"]
[Black "kingofthenil"]
[Result "1-0"]
[WhiteElo "1961"]
[BlackElo "2464"]
[TimeControl "180+1"]
[EndTime "10:10:06 PDT"]
[Termination "Michaelson_11 won by checkmate"]

1. e4 {[%clk 0:03:00.6]} 1... Nc6 {[%clk 0:02:56.9]} 2. Nf3 {[%clk 0:02:57]}
2... d5 {[%clk 0:02:55.8]} 3. exd5 {[%clk 0:02:57.5]} 3... Qxd5 {[%clk
0:02:56.7]} 4. Nc3 {[%clk 0:02:57.1]} 4... Qh5 {[%clk 0:02:55.2]} 5. d4 {[%clk
0:02:51.2]} 5... Bg4 {[%clk 0:02:54.8]} 6. Be2 {[%clk 0:02:51.3]} 6... O-O-O
{[%clk 0:02:39.7]} 7. Be3 {[%clk 0:02:47.7]} 7... e5 {[%clk 0:02:28.1]} 8. d5
{[%clk 0:02:18.8]} 8... Nf6 {[%clk 0:02:26.1]} 9. h3 {[%clk 0:02:13.4]} 9... e4
{[%clk 0:02:16.6]} 10. Nd2 {[%clk 0:01:33.2]} 10... Bxe2 {[%clk 0:02:14.3]} 11.
Qxe2 {[%clk 0:01:34.1]} 11... Qxe2+ {[%clk 0:02:11.3]} 12. Kxe2 {[%clk
0:01:33.3]} 12... Nb4 {[%clk 0:02:06.2]} 13. Ndxe4 {[%clk 0:01:11]} 13... Nxe4
{[%clk 0:02:04]} 14. Nxe4 {[%clk 0:01:09.4]} 14... Nxd5 {[%clk 0:01:44.5]} 15.
Ng5 {[%clk 0:00:48.4]} 15... Nxe3 {[%clk 0:01:34.1]} 16. fxe3 {[%clk 0:00:39.4]}
16... Rd7 {[%clk 0:01:32.3]} 17. Rad1 {[%clk 0:00:37.2]} 17... Bd6 {[%clk
0:01:31.4]} 18. Ne4 {[%clk 0:00:29.9]} 18... Be5 {[%clk 0:01:28]} 19. Rxd7
{[%clk 0:00:27.7]} 19... Kxd7 {[%clk 0:01:28.9]} 20. Rd1+ {[%clk 0:00:28.3]}
20... Ke7 {[%clk 0:01:28.1]} 21. c3 {[%clk 0:00:28.2]} 21... b6 {[%clk
0:01:23.4]} 22. Rd5 {[%clk 0:00:26.4]} 22... f6 {[%clk 0:01:22.9]} 23. Nd2
{[%clk 0:00:21]} 23... Ke6 {[%clk 0:01:21.8]} 24. Rd3 {[%clk 0:00:20.6]} 24...
c5 {[%clk 0:01:16.1]} 25. Nf3 {[%clk 0:00:20.9]} 25... Bc7 {[%clk 0:01:15.2]}
26. e4 {[%clk 0:00:20.6]} 26... Re8 {[%clk 0:01:09.4]} 27. Ke3 {[%clk
0:00:20.7]} 27... g5 {[%clk 0:01:03.2]} 28. Rd1 {[%clk 0:00:18.8]} 28... Bf4+
{[%clk 0:01:00.9]} 29. Kf2 {[%clk 0:00:18.6]} 29... h5 {[%clk 0:00:59.8]} 30. g3
{[%clk 0:00:17.4]} 30... Bc7 {[%clk 0:00:59.7]} 31. Ne1 {[%clk 0:00:10.7]} 31...
Re7 {[%clk 0:00:48.8]} 32. Ng2 {[%clk 0:00:10.5]} 32... Ke5 {[%clk 0:00:25.6]}
33. Kf3 {[%clk 0:00:08.3]} 33... Rg7 {[%clk 0:00:16.2]} 34. Ne3 {[%clk
0:00:08.3]} 34... Ke6 {[%clk 0:00:16.1]} 35. Nf5 {[%clk 0:00:08]} 35... g4+
{[%clk 0:00:12]} 36. Kf2 {[%clk 0:00:05.9]} 36... Rd7 {[%clk 0:00:09.3]} 37.
Rxd7 {[%clk 0:00:03.8]} 37... Kxd7 {[%clk 0:00:10.2]} 38. hxg4 {[%clk
0:00:04.5]} 38... hxg4 {[%clk 0:00:11.1]} 39. Ne3 {[%clk 0:00:05.1]} 39... Ke6
{[%clk 0:00:09.5]} 40. Nxg4 {[%clk 0:00:05.6]} 40... b5 {[%clk 0:00:08.8]} 41.
Kf3 {[%clk 0:00:05.1]} 41... c4 {[%clk 0:00:05.8]} 42. Ne3 {[%clk 0:00:05.1]}
42... Be5 {[%clk 0:00:03.6]} 43. Nd5 {[%clk 0:00:05]} 43... a5 {[%clk
0:00:02.2]} 44. g4 {[%clk 0:00:04.5]} 44... Kd6 {[%clk 0:00:02.3]} 45. Ke3
{[%clk 0:00:04.7]} 45... Kc5 {[%clk 0:00:02.3]} 46. Ne7 {[%clk 0:00:04.4]} 46...
b4 {[%clk 0:00:02.3]} 47. Nd5 {[%clk 0:00:04.7]} 47... bxc3 {[%clk 0:00:02.2]}
48. bxc3 {[%clk 0:00:05.6]} 48... Kb5 {[%clk 0:00:02.6]} 49. Kd2 {[%clk
0:00:06]} 49... Ka4 {[%clk 0:00:03]} 50. Kc2 {[%clk 0:00:06.3]} 50... Ka3 {[%clk
0:00:03.4]} 51. Kb1 {[%clk 0:00:06.5]} 51... Ka4 {[%clk 0:00:02.7]} 52. Kb2
{[%clk 0:00:06.7]} 52... Kb5 {[%clk 0:00:02.2]} 53. Ka3 {[%clk 0:00:06.7]} 53...
Kc5 {[%clk 0:00:01.8]} 54. Ka4 {[%clk 0:00:06.8]} 54... Bd6 {[%clk 0:00:01]} 55.
Kxa5 {[%clk 0:00:06.7]} 55... Kc6 {[%clk 0:00:01.9]} 56. Nxf6 {[%clk 0:00:06.5]}
56... Be5 {[%clk 0:00:02.8]} 57. Nd5 {[%clk 0:00:06.6]} 57... Kc5 {[%clk
0:00:03.7]} 58. Ka4 {[%clk 0:00:06.8]} 58... Kc6 {[%clk 0:00:04.5]} 59. Kb4
{[%clk 0:00:07]} 59... Kd6 {[%clk 0:00:04.5]} 60. Kxc4 {[%clk 0:00:07.4]} 60...
Ke6 {[%clk 0:00:05.4]} 61. a4 {[%clk 0:00:07.7]} 61... Kf7 {[%clk 0:00:06.3]}
62. a5 {[%clk 0:00:08]} 62... Kg6 {[%clk 0:00:06]} 63. Kb5 {[%clk 0:00:07.8]}
63... Kg5 {[%clk 0:00:05.7]} 64. a6 {[%clk 0:00:08.3]} 64... Bb8 {[%clk
0:00:05.4]} 65. Kb6 {[%clk 0:00:08.4]} 65... Kxg4 {[%clk 0:00:05.8]} 66. Kb7
{[%clk 0:00:08.2]} 66... Bg3 {[%clk 0:00:05]} 67. a7 {[%clk 0:00:08.2]} 67...
Kf3 {[%clk 0:00:05.9]} 68. a8=Q {[%clk 0:00:08]} 68... Kxe4 {[%clk 0:00:06.8]}
69. Kc8 {[%clk 0:00:06.7]} 69... Kd3 {[%clk 0:00:07]} 70. Qc6 {[%clk 0:00:05.7]}
70... Be5 {[%clk 0:00:06.7]} 71. Ne7 {[%clk 0:00:05.7]} 71... Bxc3 {[%clk
0:00:06.4]} 72. Kd7 {[%clk 0:00:06.1]} 72... Kc2 {[%clk 0:00:06.3]} 73. Nd5
{[%clk 0:00:06.2]} 73... Kd2 {[%clk 0:00:03.1]} 74. Qxc3+ {[%clk 0:00:07.1]}
74... Ke2 {[%clk 0:00:04]} 75. Qd4 {[%clk 0:00:07.4]} 75... Kf3 {[%clk 0:00:04]}
76. Qe5 {[%clk 0:00:07.4]} 76... Kg4 {[%clk 0:00:04.9]} 77. Qf4+ {[%clk
0:00:07]} 77... Kh5 {[%clk 0:00:05.6]} 78. Ke6 {[%clk 0:00:05.9]} 78... Kg6
{[%clk 0:00:06.5]} 79. Qf5+ {[%clk 0:00:06.3]} 79... Kg7 {[%clk 0:00:06.5]} 80.
Qf6+ {[%clk 0:00:06.1]} 80... Kg8 {[%clk 0:00:05.6]} 81. Kf5 {[%clk 0:00:05.9]}
81... Kh7 {[%clk 0:00:04.8]} 82. Kg4 {[%clk 0:00:05.8]} 82... Kg8 {[%clk
0:00:03.9]} 83. Kh5 {[%clk 0:00:06]} 83... Kh7 {[%clk 0:00:04]} 84. Qf7+ {[%clk
0:00:06.4]} 84... Kh8 {[%clk 0:00:04]} 85. Qe7 {[%clk 0:00:06.6]} 85... Kg8
{[%clk 0:00:03.9]} 86. Nf6+ {[%clk 0:00:06.9]} 86... Kh8 {[%clk 0:00:03.6]} 87.
Qh7# {[%clk 0:00:07.6]} 1-0

[Event "*** Titled Tuesday Blitz"]
[Site "Chess.com"]
[Date "2020.04.28"]
[Round "2"]
[White "zane33"]
[Black "MichailovM"]
[Result "0-1"]
[WhiteElo "1979"]
[BlackElo "2363"]
[TimeControl "180+1"]
[EndTime "10:12:44 PDT"]
[Termination "MichailovM won by resignation"]

1. d4 {[%clk 0:03:00.9]} 1... Nf6 {[%clk 0:02:58.6]} 2. Nf3 {[%clk 0:02:59.4]}
2... g6 {[%clk 0:02:58.2]} 3. c4 {[%clk 0:02:55.9]} 3... Bg7 {[%clk 0:02:58.4]}
4. Nc3 {[%clk 0:02:55.4]} 4... O-O {[%clk 0:02:59.3]} 5. e4 {[%clk 0:02:55.3]}
5... d6 {[%clk 0:02:59.9]} 6. h3 {[%clk 0:02:54.7]} 6... e5 {[%clk 0:02:58.8]}
7. Be2 {[%clk 0:02:49.4]} 7... exd4 {[%clk 0:02:46]} 8. Nxd4 {[%clk 0:02:47.8]}
8... Re8 {[%clk 0:02:45.9]} 9. f3 {[%clk 0:02:13.4]} 9... Nh5 {[%clk 0:02:44.1]}
10. O-O {[%clk 0:02:06.8]} 10... Ng3 {[%clk 0:02:38.3]} 11. Re1 {[%clk
0:02:06.8]} 11... Nxe2+ {[%clk 0:02:37.9]} 12. Qxe2 {[%clk 0:02:02.1]} 12...
Bxd4+ {[%clk 0:02:35]} 0-1

[Event "*** Titled Tuesday Blitz"]
[Site "Chess.com"]
[Date "2020.04.28"]
[Round "2"]
[White "gui_borba"]
[Black "AndrewMaco"]
[Result "0-1"]
[WhiteElo "2354"]
[BlackElo "2654"]
[TimeControl "180+1"]
[EndTime "10:12:55 PDT"]
[Termination "AndrewMaco won by resignation"]

1. d4 {[%clk 0:02:59.2]} 1... Nf6 {[%clk 0:02:58.3]} 2. Bf4 {[%clk 0:02:59.5]}
2... g6 {[%clk 0:02:56.2]} 3. Nc3 {[%clk 0:02:58.3]} 3... d6 {[%clk 0:02:53.3]}
4. e4 {[%clk 0:02:58.1]} 4... c6 {[%clk 0:02:53.8]} 5. Qd2 {[%clk 0:02:56.8]}
5... b5 {[%clk 0:02:52.8]} 6. f3 {[%clk 0:02:56.8]} 6... Nbd7 {[%clk 0:02:49.9]}
7. O-O-O {[%clk 0:02:55.6]} 7... Nb6 {[%clk 0:02:49.3]} 8. Bd3 {[%clk
0:02:52.1]} 8... b4 {[%clk 0:02:47.6]} 9. Nce2 {[%clk 0:02:51.6]} 9... a5 {[%clk
0:02:47.6]} 10. h4 {[%clk 0:02:48.9]} 10... h6 {[%clk 0:02:43.7]} 11. Kb1 {[%clk
0:02:48.1]} 11... Bg7 {[%clk 0:02:41.7]} 12. g4 {[%clk 0:02:47.5]} 12... Nfd7
{[%clk 0:02:40.1]} 13. Ng3 {[%clk 0:02:38.4]} 13... c5 {[%clk 0:02:34]} 14. dxc5
{[%clk 0:02:34.5]} 14... Nxc5 {[%clk 0:02:34]} 15. Bb5+ {[%clk 0:02:34.1]} 15...
Bd7 {[%clk 0:02:34.4]} 16. Bxd7+ {[%clk 0:02:33.3]} 16... Qxd7 {[%clk
0:02:34.5]} 17. N1e2 {[%clk 0:02:31.6]} 17... Bxb2 {[%clk 0:02:21.1]} 18. Kxb2
{[%clk 0:02:28.4]} 18... Nc4+ {[%clk 0:02:18.5]} 0-1

[Event "*** Titled Tuesday Blitz"]
[Site "Chess.com"]
[Date "2020.04.28"]
[Round "2"]
[White "Triumphmate"]
[Black "fastestmindalive"]
[Result "0-1"]
[WhiteElo "2537"]
[BlackElo "2823"]
[TimeControl "180+1"]
[EndTime "10:13:11 PDT"]
[Termination "fastestmindalive won by resignation"]

1. e4 {[%clk 0:02:39.5]} 1... c5 {[%clk 0:02:58.4]} 2. Nf3 {[%clk 0:02:38.3]}
2... e6 {[%clk 0:02:28.1]} 3. d4 {[%clk 0:02:39.2]} 3... cxd4 {[%clk 0:02:29]}
4. Nxd4 {[%clk 0:02:39.4]} 4... Bc5 {[%clk 0:02:29.6]} 5. Nc3 {[%clk 0:02:39.9]}
5... Qb6 {[%clk 0:02:29.1]} 6. Na4 {[%clk 0:02:36.3]} 6... Qa5+ {[%clk
0:02:26.7]} 7. c3 {[%clk 0:02:36.6]} 7... Bxd4 {[%clk 0:02:25.4]} 8. Qxd4 {[%clk
0:02:37.1]} 8... Nf6 {[%clk 0:02:17.1]} 9. b3 {[%clk 0:02:22.6]} 9... Nc6 {[%clk
0:02:14.7]} 10. Qe3 {[%clk 0:02:22.5]} 10... O-O {[%clk 0:02:01.2]} 11. Bd3
{[%clk 0:02:20.8]} 11... b5 {[%clk 0:01:56.6]} 12. Nc5 {[%clk 0:02:18.5]} 12...
Qxc3+ {[%clk 0:01:56.2]} 0-1

[Event "*** Titled Tuesday Blitz"]
[Site "Chess.com"]
[Date "2020.04.28"]
[Round "2"]
[White "warmoatmeal"]
[Black "FightingChess"]
[Result "0-1"]
[WhiteElo "1953"]
[BlackElo "2361"]
[TimeControl "180+1"]
[EndTime "10:13:22 PDT"]
[Termination "FightingChess won by resignation"]

1. d4 {[%clk 0:03:00.9]} 1... d5 {[%clk 0:02:59.1]} 2. Bf4 {[%clk 0:02:59]} 2...
Nf6 {[%clk 0:02:59]} 3. e3 {[%clk 0:02:56.2]} 3... c6 {[%clk 0:02:55.2]} 4. Nf3
{[%clk 0:02:55.8]} 4... Bg4 {[%clk 0:02:54.5]} 5. Be2 {[%clk 0:02:51.8]} 5... e6
{[%clk 0:02:54.1]} 6. h3 {[%clk 0:02:51.4]} 6... Bh5 {[%clk 0:02:52.2]} 7. c4
{[%clk 0:02:51]} 7... Nbd7 {[%clk 0:02:51.9]} 8. Nc3 {[%clk 0:02:46]} 8... Be7
{[%clk 0:02:51.5]} 9. O-O {[%clk 0:02:45]} 9... O-O {[%clk 0:02:51.4]} 10. Qb3
{[%clk 0:02:42.1]} 10... Qb6 {[%clk 0:02:50.7]} 11. c5 {[%clk 0:02:40]} 11...
Qxb3 {[%clk 0:02:50.7]} 12. axb3 {[%clk 0:02:40.9]} 12... a6 {[%clk 0:02:51.2]}
13. b4 {[%clk 0:02:40.5]} 13... Ne4 {[%clk 0:02:47]} 14. Rfc1 {[%clk 0:02:29]}
14... g5 {[%clk 0:02:37.7]} 15. Bh2 {[%clk 0:02:23.7]} 15... f5 {[%clk
0:02:35.1]} 16. Kf1 {[%clk 0:02:15.8]} 16... Bxf3 {[%clk 0:02:32.1]} 17. gxf3
{[%clk 0:02:13.3]} 17... Nd2+ {[%clk 0:02:32.5]} 18. Ke1 {[%clk 0:02:12.3]}
18... Nb3 {[%clk 0:02:32.9]} 19. Rd1 {[%clk 0:02:07.8]} 19... Nxa1 {[%clk
0:02:33.1]} 20. Rxa1 {[%clk 0:02:08.7]} 20... Kf7 {[%clk 0:02:32.3]} 0-1

[Event "*** Titled Tuesday Blitz"]
[Site "Chess.com"]
[Date "2020.04.28"]
[Round "2"]
[White "mfwagnerpeixoto"]
[Black "Spring199"]
[Result "1-0"]
[WhiteElo "2172"]
[BlackElo "2402"]
[TimeControl "180+1"]
[EndTime "10:13:32 PDT"]
[Termination "mfwagnerpeixoto won by resignation"]

1. d4 {[%clk 0:03:00.9]} 1... Nf6 {[%clk 0:02:50.2]} 2. Nf3 {[%clk 0:02:59]}
2... e6 {[%clk 0:02:50.2]} 3. g3 {[%clk 0:02:56.9]} 3... d5 {[%clk 0:02:50.3]}
4. Bg2 {[%clk 0:02:57.3]} 4... Be7 {[%clk 0:02:50.6]} 5. O-O {[%clk 0:02:58.1]}
5... O-O {[%clk 0:02:51.4]} 6. c4 {[%clk 0:02:57.8]} 6... dxc4 {[%clk 0:02:51]}
7. Qc2 {[%clk 0:02:57.7]} 7... a6 {[%clk 0:02:51.1]} 8. Qxc4 {[%clk 0:02:56.7]}
8... b5 {[%clk 0:02:50.8]} 9. Qc2 {[%clk 0:02:57.2]} 9... Bb7 {[%clk 0:02:51.1]}
10. Bg5 {[%clk 0:02:57.7]} 10... Be4 {[%clk 0:02:49.6]} 11. Qc1 {[%clk
0:02:56.4]} 11... Nbd7 {[%clk 0:02:48.8]} 12. Nc3 {[%clk 0:02:48.8]} 12... Bb7
{[%clk 0:02:45.4]} 13. Bxf6 {[%clk 0:02:45.4]} 13... Nxf6 {[%clk 0:02:44.6]} 14.
Rd1 {[%clk 0:02:33.7]} 14... Rc8 {[%clk 0:02:41.7]} 15. Ne5 {[%clk 0:02:32]}
15... Bxg2 {[%clk 0:02:39.8]} 16. Kxg2 {[%clk 0:02:32.9]} 16... b4 {[%clk
0:02:36.3]} 17. Na4 {[%clk 0:02:17]} 17... Qd5+ {[%clk 0:02:35.3]} 18. f3 {[%clk
0:02:16.8]} 18... c5 {[%clk 0:02:33.8]} 19. Nb6 {[%clk 0:02:11]} 19... Qb7
{[%clk 0:02:13.5]} 20. Nxc8 {[%clk 0:02:09.8]} 20... Rxc8 {[%clk 0:02:14.4]} 21.
dxc5 {[%clk 0:02:07.9]} 21... Bxc5 {[%clk 0:02:12.1]} 22. Qxc5 {[%clk
0:02:04.7]} 1-0

[Event "*** Titled Tuesday Blitz"]
[Site "Chess.com"]
[Date "2020.04.28"]
[Round "2"]
[White "m-garcett"]
[Black "zmeeed67"]
[Result "0-1"]
[WhiteElo "2079"]
[BlackElo "2390"]
[TimeControl "180+1"]
[EndTime "10:13:33 PDT"]
[Termination "zmeeed67 won by resignation"]

1. e4 {[%clk 0:03:00.9]} 1... c5 {[%clk 0:02:57.4]} 2. Nf3 {[%clk 0:02:55.1]}
2... e6 {[%clk 0:02:57.7]} 3. d4 {[%clk 0:02:54.7]} 3... cxd4 {[%clk 0:02:58.6]}
4. Nxd4 {[%clk 0:02:55.2]} 4... Nf6 {[%clk 0:02:59.5]} 5. Bd3 {[%clk 0:02:55.3]}
5... Nc6 {[%clk 0:02:58.3]} 6. Nxc6 {[%clk 0:02:53.7]} 6... bxc6 {[%clk
0:02:59.2]} 7. Qe2 {[%clk 0:02:54.1]} 7... d5 {[%clk 0:02:59.2]} 8. e5 {[%clk
0:02:53.4]} 8... Nd7 {[%clk 0:02:58.9]} 9. O-O {[%clk 0:02:51.9]} 9... a5 {[%clk
0:02:59]} 10. c4 {[%clk 0:02:50.4]} 10... Ba6 {[%clk 0:02:51]} 11. f4 {[%clk
0:02:32.7]} 11... Nc5 {[%clk 0:02:37.6]} 12. b3 {[%clk 0:02:21.9]} 12... Nxd3
{[%clk 0:02:34.8]} 13. Qxd3 {[%clk 0:02:20.7]} 13... dxc4 {[%clk 0:02:35.7]} 14.
Qf3 {[%clk 0:01:49.1]} 14... Qd5 {[%clk 0:02:27.8]} 15. Qg4 {[%clk 0:01:37.7]}
15... Qd4+ {[%clk 0:02:15.6]} 0-1

[Event "*** Titled Tuesday Blitz"]
[Site "Chess.com"]
[Date "2020.04.28"]
[Round "2"]
[White "Aygehovit1992"]
[Black "MacDaddyMac"]
[Result "1-0"]
[WhiteElo "2671"]
[BlackElo "2321"]
[TimeControl "180+1"]
[EndTime "10:13:44 PDT"]
[Termination "Aygehovit1992 won by resignation"]

1. e4 {[%clk 0:03:00.9]} 1... e6 {[%clk 0:02:59.9]} 2. d4 {[%clk 0:02:55.9]}
2... d5 {[%clk 0:03:00]} 3. Nc3 {[%clk 0:02:55.9]} 3... Nf6 {[%clk 0:02:59.2]}
4. Bg5 {[%clk 0:02:55.1]} 4... Be7 {[%clk 0:02:56.7]} 5. e5 {[%clk 0:02:55]}
5... Nfd7 {[%clk 0:02:57.2]} 6. h4 {[%clk 0:02:55.2]} 6... a6 {[%clk 0:02:47.6]}
7. Qg4 {[%clk 0:02:53.7]} 7... Bxg5 {[%clk 0:02:45.7]} 8. hxg5 {[%clk
0:02:53.3]} 8... c5 {[%clk 0:02:44.1]} 9. g6 {[%clk 0:02:41.9]} 9... h6 {[%clk
0:02:18.8]} 10. Nf3 {[%clk 0:02:33.6]} 10... cxd4 {[%clk 0:02:14.5]} 11. gxf7+
{[%clk 0:02:15.2]} 11... Kxf7 {[%clk 0:02:13.2]} 12. Nxd4 {[%clk 0:02:11.9]}
12... Nxe5 {[%clk 0:02:07]} 13. Qh5+ {[%clk 0:02:10.1]} 13... Ng6 {[%clk
0:02:07.3]} 14. Bd3 {[%clk 0:02:08.3]} 14... Qf6 {[%clk 0:02:04.5]} 15. Rh4
{[%clk 0:02:04.6]} 15... Nc6 {[%clk 0:01:47.5]} 16. Bxg6+ {[%clk 0:02:01.4]}
16... Qxg6 {[%clk 0:01:46.3]} 17. Rf4+ {[%clk 0:02:00.6]} 1-0

[Event "*** Titled Tuesday Blitz"]
[Site "Chess.com"]
[Date "2020.04.28"]
[Round "2"]
[White "abubakrtagelsir"]
[Black "tamarozi99"]
[Result "1-0"]
[WhiteElo "2361"]
[BlackElo "1954"]
[TimeControl "180+1"]
[EndTime "10:13:46 PDT"]
[Termination "abubakrtagelsir won by resignation"]

1. Nf3 {[%clk 0:03:00.9]} 1... g6 {[%clk 0:02:57.6]} 2. g3 {[%clk 0:03:00.5]}
2... Bg7 {[%clk 0:02:56.6]} 3. Bg2 {[%clk 0:03:01.4]} 3... d6 {[%clk 0:02:54.8]}
4. O-O {[%clk 0:03:00.8]} 4... Nc6 {[%clk 0:02:54.5]} 5. c4 {[%clk 0:02:59.3]}
5... e5 {[%clk 0:02:54.7]} 6. d3 {[%clk 0:02:58.3]} 6... f5 {[%clk 0:02:54.8]}
7. Nc3 {[%clk 0:02:57.2]} 7... Nf6 {[%clk 0:02:54.6]} 8. Rb1 {[%clk 0:02:57.3]}
8... O-O {[%clk 0:02:53.4]} 9. Qc2 {[%clk 0:02:57.2]} 9... h6 {[%clk 0:02:32.9]}
10. b4 {[%clk 0:02:54.8]} 10... Ne7 {[%clk 0:02:30.2]} 11. b5 {[%clk 0:02:52.9]}
11... g5 {[%clk 0:02:22.9]} 12. Qb3 {[%clk 0:02:50.9]} 12... Be6 {[%clk
0:02:22.6]} 13. Nd2 {[%clk 0:02:43.8]} 13... Rb8 {[%clk 0:02:18.9]} 14. Nd5
{[%clk 0:02:43]} 14... c6 {[%clk 0:01:46.4]} 15. bxc6 {[%clk 0:02:36.6]} 15...
bxc6 {[%clk 0:01:46.2]} 16. Qxb8 {[%clk 0:02:34.9]} 16... Qxb8 {[%clk
0:01:43.8]} 17. Nxe7+ {[%clk 0:02:29.2]} 17... Kf7 {[%clk 0:01:42.4]} 18. Rxb8
{[%clk 0:02:28.2]} 18... Rxb8 {[%clk 0:01:38.4]} 19. Nxc6 {[%clk 0:02:27.2]}
19... Ra8 {[%clk 0:01:32.3]} 20. Nxe5+ {[%clk 0:02:25.6]} 1-0

[Event "*** Titled Tuesday Blitz"]
[Site "Chess.com"]
[Date "2020.04.28"]
[Round "2"]
[White "ZCorrales"]
[Black "elisak43"]
[Result "0-1"]
[WhiteElo "2064"]
[BlackElo "2386"]
[TimeControl "180+1"]
[EndTime "10:13:52 PDT"]
[Termination "elisak43 won by resignation"]

1. e4 {[%clk 0:03:00.9]} 1... Nf6 {[%clk 0:03:00.9]} 2. e5 {[%clk 0:03:00.2]}
2... Nd5 {[%clk 0:03:01]} 3. d4 {[%clk 0:03:00.6]} 3... d6 {[%clk 0:03:01.3]} 4.
Nf3 {[%clk 0:03:00.7]} 4... Nb6 {[%clk 0:03:01.4]} 5. exd6 {[%clk 0:02:57.7]}
5... cxd6 {[%clk 0:03:02.3]} 6. Bd3 {[%clk 0:02:56.6]} 6... g6 {[%clk
0:03:00.8]} 7. O-O {[%clk 0:02:56.3]} 7... Bg7 {[%clk 0:02:57.1]} 8. h3 {[%clk
0:02:55.6]} 8... O-O {[%clk 0:02:56.4]} 9. c4 {[%clk 0:02:54.4]} 9... Nc6 {[%clk
0:02:56.4]} 10. Be3 {[%clk 0:02:51.9]} 10... e5 {[%clk 0:02:55.9]} 11. dxe5
{[%clk 0:02:48]} 11... dxe5 {[%clk 0:02:56.8]} 12. Be2 {[%clk 0:02:42.7]} 12...
e4 {[%clk 0:02:49.3]} 13. Nd4 {[%clk 0:02:41.7]} 13... Nxd4 {[%clk 0:02:49]} 14.
Bxd4 {[%clk 0:02:28.1]} 14... Qxd4 {[%clk 0:02:47.5]} 15. Nc3 {[%clk 0:02:22.3]}
15... Qxd1 {[%clk 0:02:43.1]} 16. Rfxd1 {[%clk 0:02:21.6]} 16... Be6 {[%clk
0:02:43.4]} 17. Nxe4 {[%clk 0:02:19.7]} 17... Bxc4 {[%clk 0:02:41]} 18. Bf3
{[%clk 0:02:18]} 18... Bxb2 {[%clk 0:02:34.3]} 19. Rab1 {[%clk 0:02:17.5]} 19...
Be5 {[%clk 0:02:34.5]} 20. Nc5 {[%clk 0:02:14.7]} 20... Bxa2 {[%clk 0:02:30.6]}
21. Rb5 {[%clk 0:01:56.2]} 21... Bc4 {[%clk 0:02:20.1]} 22. Rb4 {[%clk
0:01:55.3]} 22... Rad8 {[%clk 0:02:10.9]} 23. Re1 {[%clk 0:01:53.8]} 23... Bc3
{[%clk 0:02:09.9]} 24. Rxc4 {[%clk 0:01:50.4]} 24... Bxe1 {[%clk 0:02:08.4]} 0-1

[Event "*** Titled Tuesday Blitz"]
[Site "Chess.com"]
[Date "2020.04.28"]
[Round "2"]
[White "Gandrade2"]
[Black "AlphalphaZero"]
[Result "0-1"]
[WhiteElo "1982"]
[BlackElo "2490"]
[TimeControl "180+1"]
[EndTime "10:13:55 PDT"]
[Termination "AlphalphaZero won by resignation"]

1. b3 {[%clk 0:03:00.9]} 1... g6 {[%clk 0:02:56.8]} 2. Bb2 {[%clk 0:03:01.3]}
2... Nf6 {[%clk 0:02:57.7]} 3. Bxf6 {[%clk 0:03:01.8]} 3... exf6 {[%clk
0:02:58.1]} 4. c4 {[%clk 0:03:02.1]} 4... d5 {[%clk 0:02:57.2]} 5. cxd5 {[%clk
0:03:01.4]} 5... Qxd5 {[%clk 0:02:58.1]} 6. Nc3 {[%clk 0:03:01.9]} 6... Qd8
{[%clk 0:02:58.1]} 7. g3 {[%clk 0:03:00.9]} 7... Bg7 {[%clk 0:02:58.2]} 8. Bg2
{[%clk 0:03:01.3]} 8... f5 {[%clk 0:02:58.7]} 9. Rc1 {[%clk 0:02:59.4]} 9... O-O
{[%clk 0:02:59.6]} 10. e3 {[%clk 0:02:59.8]} 10... c6 {[%clk 0:02:59.8]} 11.
Nge2 {[%clk 0:02:59.9]} 11... Nd7 {[%clk 0:02:59.7]} 12. d4 {[%clk 0:02:58.9]}
12... Nf6 {[%clk 0:02:59.7]} 13. O-O {[%clk 0:02:58.4]} 13... Be6 {[%clk
0:02:59.3]} 14. Nf4 {[%clk 0:02:55]} 14... Qd7 {[%clk 0:02:58.3]} 15. b4 {[%clk
0:02:50.8]} 15... a6 {[%clk 0:02:56.7]} 16. a4 {[%clk 0:02:51]} 16... Bc4 {[%clk
0:02:55.2]} 17. Re1 {[%clk 0:02:49.7]} 17... Nd5 {[%clk 0:02:52.5]} 18. Ncxd5
{[%clk 0:02:47.8]} 18... cxd5 {[%clk 0:02:53.4]} 19. Nd3 {[%clk 0:02:23.3]}
19... Rfc8 {[%clk 0:02:22]} 20. Nc5 {[%clk 0:02:18]} 20... Qe7 {[%clk
0:02:21.6]} 21. Rxc4 {[%clk 0:02:08.5]} 21... dxc4 {[%clk 0:02:20.1]} 22. Bxb7
{[%clk 0:02:08.9]} 22... Rxc5 {[%clk 0:02:02.2]} 23. Bxa8 {[%clk 0:02:08.3]}
23... Rc8 {[%clk 0:02:02.6]} 24. Bf3 {[%clk 0:01:59.5]} 24... Qxb4 {[%clk
0:02:01.9]} 25. Qc2 {[%clk 0:01:56.4]} 25... Qxe1+ {[%clk 0:02:01.1]} 0-1

[Event "*** Titled Tuesday Blitz"]
[Site "Chess.com"]
[Date "2020.04.28"]
[Round "2"]
[White "Problematique_99"]
[Black "SHIVACalypso"]
[Result "0-1"]
[WhiteElo "2496"]
[BlackElo "2287"]
[TimeControl "180+1"]
[EndTime "10:14:01 PDT"]
[Termination "SHIVACalypso won by resignation"]

1. d4 {[%clk 0:03:00.9]} 1... e6 {[%clk 0:02:59.6]} 2. Bf4 {[%clk 0:03:00.4]}
2... Nf6 {[%clk 0:02:57.6]} 3. e3 {[%clk 0:02:59.7]} 3... d5 {[%clk 0:02:57.1]}
4. Nf3 {[%clk 0:02:58.8]} 4... c5 {[%clk 0:02:57.6]} 5. c3 {[%clk 0:02:58]} 5...
Nc6 {[%clk 0:02:57.1]} 6. Nbd2 {[%clk 0:02:58.2]} 6... Bd6 {[%clk 0:02:55.6]} 7.
Bg3 {[%clk 0:02:57.9]} 7... b6 {[%clk 0:02:51.3]} 8. Bb5 {[%clk 0:02:50.8]} 8...
Bb7 {[%clk 0:02:51]} 9. Qa4 {[%clk 0:02:48.6]} 9... Qc7 {[%clk 0:02:45]} 10. Ne5
{[%clk 0:02:48.6]} 10... Rc8 {[%clk 0:02:34.4]} 11. Qxa7 {[%clk 0:02:14.2]}
11... O-O {[%clk 0:01:58.9]} 12. Nxc6 {[%clk 0:01:58.7]} 12... Bxg3 {[%clk
0:01:48.7]} 13. hxg3 {[%clk 0:01:56.2]} 13... Ra8 {[%clk 0:01:42.7]} 0-1